[Event "FIDE World Rapid-ch Open 2018"]
[White "Steinberg, Nitzan"]
[Black "Indjic, Aleksandar"]
[Site "St. Petersburg"]
[Round "12.44"]
[Annotator "ChessBase"]
[Result "1-0"]
[Date "2018.12.28"]
[WhiteElo "2532"]
[BlackElo "2620"]
[PlyCount "103"]
[TimeControl "900+10"]

1. e4 {[%emt 0:0:0]} c5 {[%emt 0:0:0]} 2. Nf3 {[%emt 0:0:0]} d6 {[%emt 0:0:0]} 3. d4 {[%emt 0:0:0]} cxd4 {[%emt 0:0:0]} 4. Nxd4 {[%emt 0:0:0]} Nf6 {[%emt 0:0:0]} 5. Nc3 {[%emt 0:0:2]} a6 {[%emt 0:0:0]} 6. h4 {[%emt 0:0:1]
} e5 {[%emt 0:0:5]} 7. Nb3 {[%emt 0:0:2]} Be7 {[%emt 0:0:12]
} 8. Be2 {[%emt 0:0:2]} h5 {[%emt 0:0:13]} 9. Bg5 {[%emt 0:0:7]} Be6 {[%emt 0:0:7]
} 10. g3 {[%emt 0:2:34]} Nbd7 {[%emt 0:0:5]} 11. a4 {[%emt 0:0:0]} Rc8 {[%emt 0:0:4]} 12. Bf3 {[%emt 0:0:10]} g6 {[%emt 0:0:48]} 13. a5 {[%emt 0:0:28]} 0-0 {[%emt 0:2:25]} 14. Qd2 {[%emt 0:0:42]} Rc4 {[%emt 0:0:0]} 15. 0-0 {[%emt 0:0:49]} Qc7 {[%emt 0:0:3]} 16. Ra4 {[%emt 0:1:25]} Rxa4 {[%emt 0:0:21]} 17. Nxa4 {[%emt 0:0:2]} Rc8 {[%emt 0:0:1]} 18. Ra1 {[%emt 0:1:21]
} Bf8 {[%emt 0:2:45]} 19. Nc3 {[%emt 0:0:44]} Ng4 {[%emt 0:0:0]} 20. Nc1 {[%emt 0:1:15]} b5 {[%emt 0:2:18]} 21. axb6 {[%emt 0:1:12]} Qxb6 {[%emt 0:0:22]} 22. Nd3 {[%emt 0:0:14]} f6 {[%emt 0:1:24]} 23. Bxg4 {[%emt 0:0:12]
} hxg4 {[%emt 0:0:2]} 24. Be3 {[%emt 0:0:46]} Qb7 {[%emt 0:0:0]} 25. Ra4 {[%emt 0:1:3]} f5 {[%emt 0:1:18]} 26. Bh6 {[%emt 0:1:34]} Be7 {[%emt 0:1:1]} 27. Bg5 {[%emt 0:0:18]} Bf8 {[%emt 0:0:4]} 28. Bh6 {[%emt 0:0:26]
} Be7 {[%emt 0:1:14]} 29. Bg5 {[%emt 0:0:2]} Nf6 {[%emt 0:0:0]} 30. Bxf6 {[%emt 0:0:33]} Bxf6 {[%emt 0:0:1]} 31. Nb4 {[%emt 0:0:15]} Bd7 {[%emt 0:1:18]} 32. Rxa6 {[%emt 0:1:10]} Qxb4 {[%emt 0:0:13]} 33. Rxd6 {[%emt 0:0:2]
} Qc4 {[%emt 0:0:21]} 34. Rxf6 {[%emt 0:0:16]} Be8 {[%emt 0:0:0]} 35. exf5 {[%emt 0:0:29]} Ra8 {[%emt 0:0:6]} 36. Qd5+ {[%emt 0:1:13]} Qxd5 {[%emt 0:0:2]} 37. Nxd5 {[%emt 0:0:1]} Kg7 {[%emt 0:0:5]} 38. Re6 {[%emt 0:0:27]
} Ra1+ {[%emt 0:0:30]} 39. Kg2 {[%emt 0:0:18]} Bf7 {[%emt 0:0:0]} 40. f6+ {[%emt 0:0:10]} Kh6 {[%emt 0:0:1]} 41. Rxe5 {[%emt 0:0:2]} Ra6 {[%emt 0:0:12]} 42. Ne3 {[%emt 0:0:12]} Be6 {[%emt 0:0:1]} 43. Rg5 {[%emt 0:0:15]
} Kh7 {[%emt 0:0:12]} 44. Nxg4 {[%emt 0:0:14]} Ra2 {[%emt 0:0:0]} 45. Ne5 {[%emt 0:0:12]} Rxb2 {[%emt 0:0:4]} 46. Nxg6 {[%emt 0:0:15]} Kh6 {[%emt 0:0:4]} 47. Nf4 {[%emt 0:0:10]} Bf7 {[%emt 0:0:0]} 48. Rg7 {[%emt 0:0:16]
} Rxc2 {[%emt 0:0:1]} 49. Kg1 {[%emt 0:0:11]} Rc1+ {[%emt 0:0:0]} 50. Kh2 {[%emt 0:0:3]} Rc2 {[%emt 0:0:1]} 51. g4 {[%emt 0:0:8]} Rxf2+ {[%emt 0:0:5]} 52. Kg3 {[%emt 0:0:2]} 1-0

[Event "FIDE World Rapid-ch Open 2018"]
[White "Jobava, Baadur"]
[Black "Potapov, Pavel"]
[Site "St. Petersburg"]
[Round "12.48"]
[Annotator "ChessBase"]
[Result "1-0"]
[Date "2018.12.28"]
[WhiteElo "2627"]
[BlackElo "2516"]
[PlyCount "99"]
[TimeControl "900+10"]

1. d4 {[%emt 0:0:0]} f5 {[%emt 0:0:0]} 2. b3 {[%emt 0:0:14]} Nf6 {[%emt 0:0:0]} 3. Bb2 {[%emt 0:0:3]} g6 {[%emt 0:0:11]} 4. e3 {[%emt 0:0:42]} Bg7 {[%emt 0:0:5]} 5. Nc3 {[%emt 0:0:13]} 0-0 {[%emt 0:0:14]} 6. Qd2 {[%emt 0:0:0]} c6 {[%emt 0:0:30]} 7. f3 {[%emt 0:0:47]} d5 {[%emt 0:0:11]} 8. h3 {[%emt 0:0:48]
} Qc7 {[%emt 0:0:35]} 9. 0-0-0 {[%emt 0:0:22]} Nh5 {[%emt 0:0:0]} 10. Nge2 {[%emt 0:0:35]} f4 {[%emt 0:0:32]} 11. e4 {[%emt 0:0:28]} Be6 {[%emt 0:1:21]} 12. Kb1 {[%emt 0:0:28]} a5 {[%emt 0:0:20]} 13. Rg1 {[%emt 0:0:0]} Nd7 {[%emt 0:0:25]} 14. Qe1 {[%emt 0:0:19]} Bf7 {[%emt 0:0:55]} 15. e5 {[%emt 0:1:12]} c5 {[%emt 0:3:32]} 16. Nb5 {[%emt 0:3:50]} Qc6 {[%emt 0:0:0]} 17. g4 {[%emt 0:1:0]} fxg3 {[%emt 0:0:49]} 18. Nxg3 {[%emt 0:0:16]} Nxg3 {[%emt 0:0:52]} 19. Rxg3 {[%emt 0:0:11]} c4 {[%emt 0:0:24]} 20. a4 {[%emt 0:0:12]
} Be6 {[%emt 0:0:23]} 21. h4 {[%emt 0:0:58]} Nb6 {[%emt 0:0:0]} 22. Bh3 {[%emt 0:0:34]} Bxh3 {[%emt 0:0:43]} 23. Rxh3 {[%emt 0:0:5]} Qe6 {[%emt 0:0:7]} 24. Rg3 {[%emt 0:0:11]} Qf5 {[%emt 0:0:6]} 25. Qe3 {[%emt 0:1:50]
} Rac8 {[%emt 0:0:39]} 26. Ba3 {[%emt 0:0:18]} Bh6 {[%emt 0:0:0]} 27. Qc3 {[%emt 0:0:5]} Rfe8 {[%emt 0:0:13]} 28. h5 {[%emt 0:0:23]} cxb3 {[%emt 0:0:30]} 29. Qxb3 {[%emt 0:0:3]} Nc4 {[%emt 0:0:2]} 30. hxg6 {[%emt 0:0:7]
} hxg6 {[%emt 0:0:2]} 31. Qd3 {[%emt 0:0:19]} Qxd3 {[%emt 0:0:0]} 32. cxd3 {[%emt 0:0:2]} Nxa3+ {[%emt 0:0:9]} 33. Nxa3 {[%emt 0:0:0]} Kf7 {[%emt 0:0:7]} 34. Rh1 {[%emt 0:0:38]} Rh8 {[%emt 0:0:24]} 35. Rgh3 {[%emt 0:0:2]} Kg7 {[%emt 0:0:7]} 36. Nb5 {[%emt 0:0:4]} Be3 {[%emt 0:0:15]
} 37. Rxh8 {[%emt 0:0:13]} Rxh8 {[%emt 0:0:1]} 38. Rxh8 {[%emt 0:0:2]
} Kxh8 {[%emt 0:0:2]} 39. Kc2 {[%emt 0:0:2]} Kg7 {[%emt 0:0:0]} 40. Nc7 {[%emt 0:0:3]} Kf7 {[%emt 0:0:15]} 41. e6+ {[%emt 0:0:3]} Kg7 {[%emt 0:0:26]} 42. Kc3 {[%emt 0:0:25]} Bf4 {[%emt 0:0:17]} 43. Nxd5 {[%emt 0:0:4]
} Bd6 {[%emt 0:0:1]} 44. Kc4 {[%emt 0:0:21]} g5 {[%emt 0:0:0]} 45. Nc3 {[%emt 0:0:19]} Kg6 {[%emt 0:0:7]} 46. Ne4 {[%emt 0:0:7]} Bb4 {[%emt 0:0:6]} 47. d5 {[%emt 0:0:9]} Kf5 {[%emt 0:0:5]} 48. Nc5 {[%emt 0:0:0]} b6 {[%emt 0:0:23]} 49. d6 {[%emt 0:0:9]} b5+ {[%emt 0:0:30]} 50. Kxb5 {[%emt 0:0:8]} 1-0

[Event "FIDE World Rapid-ch Open 2018"]
[White "Dreev, Aleksey"]
[Black "Gabrielian, Artur"]
[Site "St. Petersburg"]
[Round "12.49"]
[Annotator "ChessBase"]
[Result "1-0"]
[Date "2018.12.28"]
[WhiteElo "2670"]
[BlackElo "2499"]
[PlyCount "63"]
[TimeControl "900+10"]

1. d4 {[%emt 0:0:0]} Nf6 {[%emt 0:0:0]} 2. Nf3 {[%emt 0:0:0]} e6 {[%emt 0:0:0]
} 3. c4 {[%emt 0:0:0]} c5 {[%emt 0:0:0]} 4. d5 {[%emt 0:0:0]} exd5 {[%emt 0:0:0]} 5. cxd5 {[%emt 0:0:0]} d6 {[%emt 0:0:0]} 6. Nc3 {[%emt 0:0:2]} g6 {[%emt 0:0:0]} 7. Nd2 {[%emt 0:0:7]} Nbd7 {[%emt 0:0:0]} 8. e4 {[%emt 0:0:3]} Bg7 {[%emt 0:0:0]} 9. Be2 {[%emt 0:0:7]} 0-0 {[%emt 0:0:2]
} 10. 0-0 {[%emt 0:0:3]} Re8 {[%emt 0:0:1]} 11. a4 {[%emt 0:0:0]} Ne5 {[%emt 0:0:2]} 12. Ndb1 {[%emt 0:0:59]} Bg4 {[%emt 0:0:49]} 13. f3 {[%emt 0:0:18]} Bc8 {[%emt 0:0:23]} 14. f4 {[%emt 0:1:53]} Ned7 {[%emt 0:0:0]} 15. Bf3 {[%emt 0:0:39]} c4 {[%emt 0:0:14]} 16. Na3 {[%emt 0:0:19]} Nc5 {[%emt 0:0:19]} 17. e5 {[%emt 0:0:16]} dxe5 {[%emt 0:1:0]} 18. fxe5 {[%emt 0:0:2]
} Rxe5 {[%emt 0:1:48]} 19. Nxc4 {[%emt 0:0:3]} Re8 {[%emt 0:0:0]} 20. Bf4 {[%emt 0:1:18]} Nfe4 {[%emt 0:3:19]} 21. Nb5 {[%emt 0:1:46]} g5 {[%emt 0:4:10]} 22. Bc7 {[%emt 0:0:44]} Qd7 {[%emt 0:0:4]} 23. Bh5 {[%emt 0:0:46]
} Nf6 {[%emt 0:1:8]} 24. Ncd6 {[%emt 0:2:4]} a6 {[%emt 0:0:0]} 25. Bxf7+ {[%emt 0:1:1]} Kh8 {[%emt 0:0:46]} 26. Nxe8 {[%emt 0:0:22]} Nxe8 {[%emt 0:0:2]} 27. Bxe8 {[%emt 0:1:33]} Qxe8 {[%emt 0:0:1]} 28. Nd6 {[%emt 0:0:4]
} Qe3+ {[%emt 0:0:38]} 29. Kh1 {[%emt 0:0:1]} Bd7 {[%emt 0:0:0]} 30. Ra3 {[%emt 0:0:46]} Qe7 {[%emt 0:0:24]} 31. Nf7+ {[%emt 0:0:21]} Kg8 {[%emt 0:0:10]} 32. Bd6 {[%emt 0:0:4]} 1-0

[Event "FIDE World Rapid-ch Open 2018"]
[White "Khusnutdinov, Rustam"]
[Black "Pantsulaia, Levan"]
[Site "St. Petersburg"]
[Round "12.51"]
[Annotator "ChessBase"]
[Result "0-1"]
[Date "2018.12.28"]
[WhiteElo "2470"]
[BlackElo "2597"]
[PlyCount "78"]
[TimeControl "900+10"]

1. e4 {[%emt 0:0:0]} c5 {[%emt 0:0:0]} 2. Nf3 {[%emt 0:0:0]} e6 {[%emt 0:0:0]} 3. d4 {[%emt 0:0:0]} cxd4 {[%emt 0:0:0]} 4. Nxd4 {[%emt 0:0:0]} a6 {[%emt 0:0:0]} 5. Nc3 {[%emt 0:0:0]} b5 {[%emt 0:0:3]} 6. Bd3 {[%emt 0:0:1]
} Bb7 {[%emt 0:0:4]} 7. 0-0 {[%emt 0:0:3]} Nc6 {[%emt 0:0:0]} 8. Nxc6 {[%emt 0:1:19]} Bxc6 {[%emt 0:0:2]} 9. Re1 {[%emt 0:0:1]} Bc5 {[%emt 0:0:5]} 10. Be3 {[%emt 0:2:2]} Bxe3 {[%emt 0:0:3]} 11. Rxe3 {[%emt 0:0:2]
} Ne7 {[%emt 0:0:3]} 12. Qh5 {[%emt 0:0:29]} Ng6 {[%emt 0:0:0]} 13. a4 {[%emt 0:2:8]} b4 {[%emt 0:0:43]} 14. Ne2 {[%emt 0:0:1]} Qf6 {[%emt 0:1:2]
} 15. e5 {[%emt 0:1:47]} Qe7 {[%emt 0:1:18]} 16. Qg4 {[%emt 0:0:0]} 0-0 {[%emt 0:1:16]} 17. Qh5 {[%emt 0:1:12]} Qc5 {[%emt 0:1:34]} 18. Nf4 {[%emt 0:0:30]} Qd4 {[%emt 0:4:51]} 19. Nh3 {[%emt 0:1:51]} h6 {[%emt 0:0:0]} 20. Rae1 {[%emt 0:0:10]} Bxa4 {[%emt 0:2:10]} 21. Rg3 {[%emt 0:0:42]
} Rac8 {[%emt 0:0:11]} 22. Rxg6 {[%emt 0:1:24]} fxg6 {[%emt 0:0:20]} 23. Qxg6 {[%emt 0:0:1]} Rfe8 {[%emt 0:1:49]} 24. Qh7+ {[%emt 0:0:52]} Kf8 {[%emt 0:0:1]
} 25. Bg6 {[%emt 0:0:12]} Qd2 {[%emt 0:1:1]} 26. Ra1 {[%emt 0:0:0]} b3 {[%emt 0:0:43]} 27. Qh8+ {[%emt 0:0:44]} Ke7 {[%emt 0:0:1]} 28. Qxg7+ {[%emt 0:0:0]} Kd8 {[%emt 0:0:1]} 29. Qf6+ {[%emt 0:0:18]} Kc7 {[%emt 0:0:19]
} 30. cxb3 {[%emt 0:0:7]} Rf8 {[%emt 0:0:4]} 31. Qe7 {[%emt 0:0:21]
} Bc6 {[%emt 0:0:11]} 32. Qc5 {[%emt 0:0:11]} Qd5 {[%emt 0:0:0]} 33. Qa7+ {[%emt 0:0:0]} Kd8 {[%emt 0:0:1]} 34. Qb6+ {[%emt 0:0:1]} Ke7 {[%emt 0:0:22]} 35. Qb4+ {[%emt 0:0:1]} d6 {[%emt 0:0:9]} 36. exd6+ {[%emt 0:0:12]
} Kd7 {[%emt 0:0:8]} 37. f3 {[%emt 0:0:25]} Rxf3 {[%emt 0:0:0]} 38. Be4 {[%emt 0:0:12]} Rxb3 {[%emt 0:0:29]} 39. Bxd5 {[%emt 0:0:22]} Rxb4 {[%emt 0:0:2]} 0-1

[Event "FIDE World Rapid-ch Open 2018"]
[White "Esipenko, Andrey"]
[Black "Popov, Valerij"]
[Site "St. Petersburg"]
[Round "12.52"]
[Annotator "ChessBase"]
[Result "1-0"]
[Date "2018.12.28"]
[WhiteElo "2593"]
[BlackElo "2532"]
[PlyCount "99"]
[TimeControl "900+10"]

1. d4 {[%emt 0:0:0]} d5 {[%emt 0:0:0]} 2. Nf3 {[%emt 0:0:0]} e6 {[%emt 0:0:0]} 3. Bf4 {[%emt 0:0:4]} c5 {[%emt 0:0:23]} 4. e3 {[%emt 0:0:4]} Nf6 {[%emt 0:0:10]} 5. Nbd2 {[%emt 0:0:9]} Nc6 {[%emt 0:0:6]} 6. c3 {[%emt 0:0:0]} Bd6 {[%emt 0:0:7]} 7. Bg3 {[%emt 0:0:2]} 0-0 {[%emt 0:0:3]} 8. Bd3 {[%emt 0:0:2]} b6 {[%emt 0:0:1]} 9. Qe2 {[%emt 0:0:2]} Bb7 {[%emt 0:0:0]} 10. Rd1 {[%emt 0:0:2]} h6 {[%emt 0:0:2]} 11. dxc5 {[%emt 0:1:18]} bxc5 {[%emt 0:0:14]} 12. e4 {[%emt 0:0:4]} Be7 {[%emt 0:0:17]} 13. 0-0 {[%emt 0:0:23]
} Qb6 {[%emt 0:1:38]} 14. exd5 {[%emt 0:0:2]} exd5 {[%emt 0:0:0]} 15. c4 {[%emt 0:0:1]} d4 {[%emt 0:0:25]} 16. Ne4 {[%emt 0:1:28]} Nb4 {[%emt 0:0:25]} 17. Nxf6+ {[%emt 0:0:57]} Bxf6 {[%emt 0:0:10]} 18. Bb1 {[%emt 0:3:28]
} Rfe8 {[%emt 0:0:7]} 19. Qd2 {[%emt 0:0:2]} Be4 {[%emt 0:0:0]} 20. Bxe4 {[%emt 0:0:49]} Rxe4 {[%emt 0:0:2]} 21. a3 {[%emt 0:0:7]} Nc6 {[%emt 0:0:43]} 22. Rfe1 {[%emt 0:0:46]} Rae8 {[%emt 0:3:12]} 23. Rxe4 {[%emt 0:0:50]
} Rxe4 {[%emt 0:0:1]} 24. Qc2 {[%emt 0:0:12]} Re6 {[%emt 0:0:0]} 25. Ne1 {[%emt 0:0:39]} Na5 {[%emt 0:1:10]} 26. Nd3 {[%emt 0:0:13]} Qb3 {[%emt 0:0:3]} 27. Qxb3 {[%emt 0:0:26]} Nxb3 {[%emt 0:0:1]} 28. Kf1 {[%emt 0:0:11]
} g5 {[%emt 0:2:22]} 29. f3 {[%emt 0:2:9]} Ra6 {[%emt 0:0:40]
} 30. Be5 {[%emt 0:4:5]} Be7 {[%emt 0:0:43]} 31. Ke2 {[%emt 0:0:25]} Kf8 {[%emt 0:2:22]
} 32. f4 {[%emt 0:0:39]} f6 {[%emt 0:0:23]} 33. Bb8 {[%emt 0:0:0]} Rb6 {[%emt 0:0:28]} 34. Bxa7 {[%emt 0:0:31]} Rb7 {[%emt 0:0:1]} 35. Bxc5 Nxc5 {[%emt 0:0:20]} 36. b4 {[%emt 0:0:20]} Ne4 {[%emt 0:0:8]} 37. Kf3 {[%emt 0:0:1]} Nc3 {[%emt 0:0:9]} 38. Ra1 {[%emt 0:0:3]} Bd8 {[%emt 0:0:0]} 39. f5 {[%emt 0:0:29]} Re7 {[%emt 0:0:18]} 40. Re1 {[%emt 0:0:1]} Ra7 {[%emt 0:0:4]} 41. Ra1 {[%emt 0:0:2]} h5 {[%emt 0:0:13]} 42. h3 {[%emt 0:0:0]} Be7 {[%emt 0:0:10]} 43. c5 {[%emt 0:0:31]} Ke8 {[%emt 0:0:7]} 44. h4 {[%emt 0:0:7]} gxh4 {[%emt 0:0:15]} 45. Nf4 {[%emt 0:0:0]} Ra4 {[%emt 0:0:26]
} 46. Ne6 {[%emt 0:0:9]} Nd5 {[%emt 0:0:29]} 47. c6 {[%emt 0:0:0]} Bxb4 {[%emt 0:0:13]} 48. c7 {[%emt 0:0:1]} Kd7 {[%emt 0:0:1]} 49. Rc1 {[%emt 0:0:1]} Bc3 {[%emt 0:0:8]} 50. Nc5+ {[%emt 0:0:1]} 1-0

[Event "FIDE World Rapid-ch Open 2018"]
[White "Popov, Ivan"]
[Black "Vitiugov, Nikita"]
[Site "St. Petersburg"]
[Round "12.53"]
[Annotator "ChessBase"]
[Result "1/2-1/2"]
[Date "2018.12.28"]
[WhiteElo "2592"]
[BlackElo "2719"]
[PlyCount "85"]
[TimeControl "900+10"]

1. e4 {[%emt 0:0:0]} c5 {[%emt 0:0:8]} 2. Nf3 {[%emt 0:0:0]} Nf6 {[%emt 0:0:19]
} 3. e5 {[%emt 0:0:29]} Nd5 {[%emt 0:0:2]} 4. Nc3 {[%emt 0:0:0]} Nxc3 {[%emt 0:0:2]} 5. dxc3 {[%emt 0:0:1]} Nc6 {[%emt 0:0:5]} 6. Bf4 {[%emt 0:0:5]} Qb6 {[%emt 0:0:27]} 7. b3 {[%emt 0:1:2]} e6 {[%emt 0:0:11]
} 8. Qd2 {[%emt 0:0:20]} Qc7 {[%emt 0:0:7]} 9. Be2 {[%emt 0:0:36]} h6 {[%emt 0:0:42]
} 10. h4 {[%emt 0:0:25]} b6 {[%emt 0:0:6]} 11. h5 {[%emt 0:0:0]} Bb7 {[%emt 0:0:3]} 12. Rh4 {[%emt 0:0:52]} Ne7 {[%emt 0:0:51]} 13. Rg4 {[%emt 0:0:38]} g5 {[%emt 0:1:40]} 14. hxg6 {[%emt 0:0:27]} Nxg6 {[%emt 0:0:0]} 15. 0-0-0 {[%emt 0:0:59]} 0-0-0 {[%emt 0:0:15]} 16. Kb2 {[%emt 0:0:0]} Bg7 {[%emt 0:1:48]} 17. Qe3 {[%emt 0:1:27]} h5 {[%emt 0:0:26]} 18. Rg3 {[%emt 0:1:2]} h4 {[%emt 0:0:14]} 19. Rg4 {[%emt 0:0:51]} h3 {[%emt 0:0:0]} 20. gxh3 {[%emt 0:0:30]} Rxh3 {[%emt 0:0:11]} 21. Bg3 {[%emt 0:0:4]} Bh6 {[%emt 0:4:7]} 22. Qd3 {[%emt 0:1:4]} Bc6 {[%emt 0:0:44]} 23. Qa6+ {[%emt 0:1:15]
} Kb8 {[%emt 0:0:11]} 24. Ng5 {[%emt 0:0:12]} Bxg5 {[%emt 0:0:0]} 25. Rxg5 {[%emt 0:0:1]} Rdh8 {[%emt 0:0:3]} 26. Bd3 {[%emt 0:1:3]} Ne7 {[%emt 0:1:12]} 27. Rg7 {[%emt 0:0:5]} Rf8 {[%emt 0:0:10]} 28. Qc4 {[%emt 0:0:16]
} Rhh8 {[%emt 0:0:30]} 29. Qg4 {[%emt 0:0:30]} a5 {[%emt 0:0:0]} 30. Qg5 {[%emt 0:0:38]} Nd5 {[%emt 0:0:10]} 31. Bc4 {[%emt 0:0:19]} Qb7 {[%emt 0:0:31]} 32. Bxd5 {[%emt 0:0:12]} Bxd5 {[%emt 0:0:1]} 33. c4 {[%emt 0:0:9]
} Bc6 {[%emt 0:0:9]} 34. a4 {[%emt 0:0:14]} Rh1 {[%emt 0:0:0]} 35. Rxh1 {[%emt 0:0:21]} Bxh1 {[%emt 0:0:2]} 36. Qe7 {[%emt 0:0:17]} Qc8 {[%emt 0:0:1]} 37. Rxf7 {[%emt 0:0:35]} Rxf7 {[%emt 0:0:2]} 38. Qxf7 {[%emt 0:0:1]
} Be4 {[%emt 0:0:5]} 39. Bh4 {[%emt 0:0:18]} Bf5 {[%emt 0:0:0]} 40. Be7 {[%emt 0:0:26]} Kb7 {[%emt 0:0:16]} 41. Bd6 {[%emt 0:0:6]} Ka6 {[%emt 0:0:5]} 42. Qg7 {[%emt 0:0:41]} Ka7 {[%emt 0:0:12]} 43. Qf8 {[%emt 0:0:25]
} 1/2-1/2

[Event "FIDE World Rapid-ch Open 2018"]
[White "Adly, Ahmed"]
[Black "Kryakvin, Dmitry"]
[Site "St. Petersburg"]
[Round "12.54"]
[Annotator "ChessBase"]
[Result "1/2-1/2"]
[Date "2018.12.28"]
[WhiteElo "2626"]
[BlackElo "2588"]
[PlyCount "135"]
[TimeControl "900+10"]

1. Nf3 {[%emt 0:0:0]} d5 {[%emt 0:0:0]} 2. g3 {[%emt 0:0:0]} c6 {[%emt 0:0:0]} 3. Bg2 {[%emt 0:0:0]} Bg4 {[%emt 0:0:0]} 4. 0-0 {[%emt 0:0:0]} Nd7 {[%emt 0:0:0]} 5. d3 {[%emt 0:0:2]} e6 {[%emt 0:0:0]} 6. c4 {[%emt 0:0:0]} Ngf6 {[%emt 0:0:16]} 7. cxd5 {[%emt 0:0:7]} exd5 {[%emt 0:0:12]} 8. h3 {[%emt 0:0:2]} Bxf3 {[%emt 0:0:26]} 9. Bxf3 {[%emt 0:0:2]} Bc5 {[%emt 0:0:2]
} 10. Bg2 {[%emt 0:0:8]} 0-0 {[%emt 0:0:3]} 11. Nc3 {[%emt 0:0:0]} Re8 {[%emt 0:0:23]} 12. e4 {[%emt 0:0:26]} dxe4 {[%emt 0:0:30]} 13. dxe4 {[%emt 0:0:2]} Ne5 {[%emt 0:0:15]} 14. Bg5 {[%emt 0:0:26]} h6 {[%emt 0:0:30]
} 15. Bxf6 {[%emt 0:0:27]} Qxf6 {[%emt 0:0:34]} 16. Kh2 {[%emt 0:0:23]
} Qe6 {[%emt 0:7:15]} 17. Qc2 {[%emt 0:4:12]} Rad8 {[%emt 0:0:0]} 18. b3 {[%emt 0:1:49]} Nd3 {[%emt 0:1:36]} 19. Rad1 {[%emt 0:2:7]} Nb4 {[%emt 0:0:5]} 20. Qe2 {[%emt 0:0:30]} Bd4 {[%emt 0:1:1]} 21. Nb1 {[%emt 0:0:2]
} Bb6 {[%emt 0:0:38]} 22. f4 {[%emt 0:0:46]} Qe7 {[%emt 0:0:0]} 23. Nc3 {[%emt 0:1:37]} Bd4 {[%emt 0:0:9]} 24. Nb1 {[%emt 0:0:7]} Bb6 {[%emt 0:0:1]} 25. e5 {[%emt 0:1:1]} Rxd1 {[%emt 0:0:38]} 26. Rxd1 Rd8 27. Nc3 {[%emt 0:0:52]} Rxd1 {[%emt 0:0:50]} 28. Qxd1 {[%emt 0:0:2]} Qc5 {[%emt 0:0:11]
} 29. Ne4 {[%emt 0:0:10]} Qe3 {[%emt 0:0:11]} 30. Nd6 {[%emt 0:0:0]} Nxa2 {[%emt 0:0:34]} 31. h4 {[%emt 0:0:10]} Nc3 {[%emt 0:0:41]} 32. Qg4 {[%emt 0:0:19]} Ne2 {[%emt 0:0:41]} 33. Qc8+ {[%emt 0:0:58]} Kh7 {[%emt 0:0:1]
} 34. Be4+ {[%emt 0:0:1]} g6 {[%emt 0:0:1]} 35. Bxg6+ {[%emt 0:0:1]
} fxg6 {[%emt 0:0:31]} 36. Qxb7+ {[%emt 0:0:19]} Kg8 {[%emt 0:0:0]} 37. Qc8+ {[%emt 0:0:2]} Kh7 {[%emt 0:0:2]} 38. Qd7+ {[%emt 0:0:3]
} Kg8 {[%emt 0:0:4]} 39. Qe6+ {[%emt 0:0:11]} Kh7 {[%emt 0:0:3]} 40. Qe7+ {[%emt 0:0:5]} Kg8 {[%emt 0:0:3]} 41. Qe8+ {[%emt 0:0:12]} Kh7 {[%emt 0:0:0]} 42. Qf7+ {[%emt 0:0:5]} Kh8 {[%emt 0:0:2]} 43. Qf8+ {[%emt 0:1:57]
} Kh7 {[%emt 0:0:1]} 44. Qe7+ {[%emt 0:0:1]} Kg8 {[%emt 0:0:7]} 45. Qe6+ {[%emt 0:0:1]} Kh7 {[%emt 0:0:5]} 46. Qd7+ {[%emt 0:0:2]} Kg8 {[%emt 0:0:0]} 47. Qf7+ {[%emt 0:1:45]} Kh8 {[%emt 0:0:1]} 48. Qf8+ {[%emt 0:0:2]
} Kh7 {[%emt 0:0:0]} 49. Qe7+ {[%emt 0:0:1]} Kg8 {[%emt 0:0:2]} 50. Qe6+ {[%emt 0:0:7]} Kh7 {[%emt 0:0:3]} 51. Qf7+ {[%emt 0:0:3]} Kh8 {[%emt 0:0:0]} 52. Qe8+ {[%emt 0:0:3]} Kh7 {[%emt 0:0:4]} 53. Qe7+ {[%emt 0:0:2]
} Kg8 {[%emt 0:0:3]} 54. Qe8+ {[%emt 0:0:4]} Kh7 {[%emt 0:0:2]} 55. Qd7+ {[%emt 0:0:4]} Kg8 {[%emt 0:0:2]} 56. Qc8+ {[%emt 0:0:9]} Kh7 {[%emt 0:0:0]} 57. Qd7+ {[%emt 0:0:43]} Kg8 {[%emt 0:0:2]} 58. Qf7+ {[%emt 0:0:1]
} Kh8 {[%emt 0:0:1]} 59. Qf8+ {[%emt 0:0:1]} Kh7 {[%emt 0:0:1]} 60. Qe7+ {[%emt 0:0:1]} Kg8 {[%emt 0:0:2]} 61. Qf7+ {[%emt 0:0:3]} Kh8 {[%emt 0:0:0]} 62. Qf6+ {[%emt 0:0:2]} Kh7 {[%emt 0:0:2]} 63. Qe7+ {[%emt 0:0:1]
} Kg8 {[%emt 0:0:3]} 64. Qe8+ {[%emt 0:0:2]} Kh7 {[%emt 0:0:1]} 65. Qf7+ {[%emt 0:0:2]} Kh8 {[%emt 0:0:2]} 66. Qf8+ {[%emt 0:0:2]} Kh7 {[%emt 0:0:0]} 67. Qf7+ {[%emt 0:0:1]} Kh8 {[%emt 0:0:1]} 68. Qf8+ {[%emt 0:0:1]
} 1/2-1/2

[Event "FIDE World Rapid-ch Open 2018"]
[White "Smirin, Ilia"]
[Black "Zhigalko, Andrey"]
[Site "St. Petersburg"]
[Round "12.57"]
[Annotator "ChessBase"]
[Result "1-0"]
[Date "2018.12.28"]
[WhiteElo "2609"]
[BlackElo "2545"]
[PlyCount "65"]
[TimeControl "900+10"]

1. e4 {[%emt 0:0:0]} c5 {[%emt 0:0:0]} 2. Nf3 {[%emt 0:0:0]} d6 {[%emt 0:0:0]} 3. d4 {[%emt 0:0:0]} cxd4 {[%emt 0:0:0]} 4. Nxd4 {[%emt 0:0:0]} Nf6 {[%emt 0:0:0]} 5. Nc3 {[%emt 0:0:1]} a6 {[%emt 0:0:0]} 6. g3 {[%emt 0:0:13]
} e6 {[%emt 0:0:7]} 7. Bg2 {[%emt 0:0:3]} Be7 {[%emt 0:0:1]
} 8. 0-0 {[%emt 0:0:12]} 0-0 {[%emt 0:0:2]} 9. b3 {[%emt 0:0:14]} Qc7 {[%emt 0:0:47]
} 10. Bb2 {[%emt 0:0:15]} Rd8 {[%emt 0:1:2]} 11. Nce2 {[%emt 0:0:42]
} e5 {[%emt 0:0:44]} 12. Nf5 {[%emt 0:0:8]} Bxf5 {[%emt 0:0:0]} 13. exf5 {[%emt 0:0:2]} d5 {[%emt 0:0:8]} 14. h3 {[%emt 0:1:51]} Nc6 {[%emt 0:1:7]} 15. g4 {[%emt 0:0:2]} Bc5 {[%emt 0:2:37]} 16. Kh1 {[%emt 0:0:0]} Rac8 {[%emt 0:1:37]} 17. Ng3 {[%emt 0:0:54]} h6 {[%emt 0:1:5]} 18. h4 {[%emt 0:0:25]} Ne4 {[%emt 0:5:51]} 19. Bxe4 {[%emt 0:1:7]} dxe4 {[%emt 0:0:1]
} 20. Qe2 {[%emt 0:0:1]} Be7 {[%emt 0:0:17]} 21. g5 {[%emt 0:0:0]} hxg5 {[%emt 0:0:2]} 22. Nxe4 {[%emt 0:0:2]} Nd4 {[%emt 0:0:43]} 23. Qg4 {[%emt 0:2:1]} Qxc2 {[%emt 0:0:38]} 24. Bxd4 {[%emt 0:0:52]} Rxd4 {[%emt 0:0:37]
} 25. Rae1 {[%emt 0:0:2]} Rc6 {[%emt 0:0:53]} 26. hxg5 {[%emt 0:0:31]
} Bxg5 {[%emt 0:0:6]} 27. Kg2 {[%emt 0:0:25]} Bf4 {[%emt 0:0:0]} 28. f6 {[%emt 0:0:57]} g6 {[%emt 0:0:3]} 29. Rh1 {[%emt 0:0:8]} Rxe4 {[%emt 0:0:13]} 30. Qh4 {[%emt 0:1:1]} Bh2 {[%emt 0:0:13]} 31. Rxe4 {[%emt 0:0:8]
} Rxf6 {[%emt 0:0:4]} 32. Qxf6 {[%emt 0:0:25]} Qxe4+ {[%emt 0:0:0]} 33. Kxh2 {[%emt 0:0:1]} 1-0